bitfinex-derivatives/quotes_BTCF0:USTF0_20250504
["timestamp","ask_amount","ask_price","bid_price","bid_amount"]
[1746399548725,0.8178,95048.0,95047.0,0.5231875]
[1746399549026,0.5078,95048.0,95047.0,0.5231875]
[1746399549217,1.3778,95048.0,95047.0,0.5231875]
[1746399549521,1.5881884,95048.0,95047.0,0.5231875]
[1746399549725,0.9981884,95048.0,95047.0,0.5231875]
[1746399550321,0.9981884,95048.0,95047.0,0.8839875]
[1746399550826,0.7878,95048.0,95047.0,0.8839875]
[1746399551024,0.7678,95048.0,95047.0,0.8839875]
[1746399551231,0.7778,95048.0,95047.0,0.8839875]
[1746399552330,0.6261,95048.0,95047.0,0.8839875]
[1746399555636,0.3461,95048.0,95047.0,0.8839875]
[1746399556440,0.6261,95048.0,95047.0,0.8839875]
[1746399557730,0.3361,95048.0,95047.0,0.8839875]
[1746399558230,0.6661,95048.0,95047.0,0.8839875]
[1746399563330,1.3161,95048.0,95047.0,0.8839875]
[1746399563531,1.3161,95048.0,95047.0,0.7210875]
[1746399563729,0.7261,95048.0,95047.0,0.7210875]
[1746399570235,0.7361,95048.0,95047.0,0.7210875]
[1746399570436,0.6661,95048.0,95047.0,0.7210875]
[1746399572241,0.119,95048.0,95047.0,0.7210875]
[1746399573242,0.001,95048.0,95047.0,0.7210875]
[1746399578747,0.481,95048.0,95047.0,0.7210875]
[1746399579148,0.8093884,95048.0,95047.0,0.7210875]
[1746399579345,0.599,95048.0,95047.0,0.7210875]
[1746399582348,0.149,95048.0,95047.0,0.7210875]
[1746399584337,0.119,95048.0,95047.0,0.7210875]
[1746399584747,0.229,95048.0,95047.0,0.7210875]
[1746399585552,0.539,95048.0,95047.0,0.7210875]
[1746399585948,0.8301,95048.0,95047.0,0.7210875]
[1746399586951,0.7901,95048.0,95047.0,0.7210875]
[1746399589153,0.4101,95048.0,95047.0,0.7210875]
[1746399589454,0.7701,95048.0,95047.0,0.7210875]
[1746399590053,0.7701,95048.0,95047.0,0.3602875]
[1746399590359,0.7701,95048.0,95047.0,0.7210875]
[1746399591653,0.8101,95048.0,95047.0,0.7210875]
[1746399594957,0.8101,95048.0,95047.0,0.3602875]
[1746399595257,0.8101,95048.0,95047.0,0.7210875]
[1746399600661,1.916112,95048.0,95037.0,0.0526031]
[1746399600960,0.2104094,95039.0,95038.0,0.2104083]
[1746399601156,0.2104127,95037.0,95035.0,0.3370166]
[1746399601358,1.2504127,95037.0,95036.0,0.37098245]
[1746399601659,1.2504127,95037.0,95036.0,0.16056755]
[1746399601861,1.5238127,95037.0,95036.0,0.37098245]
[1746399602157,0.2104304,95029.0,95015.0,0.21151306]
[1746399602463,0.2104526,95019.0,95015.0,0.00105246]
[1746399602652,0.210477,95008.0,94995.0,0.0526259]
[1746399602847,1.605357,95008.0,95007.0,0.07675927]
[1746399603054,1.828613,95008.0,95007.0,0.07675927]
[1746399603254,1.762533,95008.0,95007.0,0.07675927]
[1746399603455,1.828613,95008.0,95007.0,0.07675927]
[1746399603650,1.83257134,95008.0,95007.0,0.07675927]
[1746399603852,0.2105102,94993.0,94992.0,0.00157907]
[1746399604158,1.4545902,94993.0,94992.0,0.00157907]
[1746399604658,1.8272622,94993.0,94992.0,0.00157907]
[1746399604959,0.2065257,94986.0,94980.0,0.37567264]
[1746399605153,1.1865257,94986.0,94980.0,0.37567264]
[1746399605459,1.2838057,94986.0,94980.0,0.37567264]
[1746399605847,1.5432057,94986.0,94980.0,0.37567264]
[1746399606052,1.5432057,94986.0,94985.0,0.00705279]
[1746399606252,1.6622057,94986.0,94985.0,0.01005279]
[1746399609061,1.6622057,94986.0,94955.0,0.00105312]
[1746399609062,0.2105878,94958.0,94955.0,0.00105312]
[1746399609359,1.7275078,94958.0,94955.0,0.00105312]
[1746399609562,0.79692,94958.0,94955.0,0.00105312]
[1746399609862,0.96,94958.0,94957.0,0.36237965]
[1746399610059,0.5025878,94958.0,94957.0,0.00157965]
[1746399610262,0.9125878,94958.0,94957.0,0.00157965]
[1746399610852,1.1780878,94958.0,94957.0,0.00157965]
[1746399611058,1.2960878,94958.0,94957.0,0.00157965]
[1746399611469,1.2970878,94958.0,94957.0,0.00857965]
[1746399612362,1.4023998,94958.0,94957.0,0.00857965]
[1746399613767,1.4023998,94958.0,94955.0,0.00105312]
[1746399613768,0.2105922,94956.0,94955.0,7e-08]
[1746399613970,1.2305922,94956.0,94955.0,7e-08]
[1746399614159,1.4539042,94956.0,94955.0,7e-08]
[1746399614360,0.2106432,94933.0,94932.0,0.1345]
[1746399614561,0.2106566,94927.0,94926.0,0.1268]
[1746399614758,0.2106566,94927.0,94926.0,0.1301]
[1746399614759,1.1406566,94927.0,94926.0,0.1301]
[1746399615062,0.2036588,94926.0,94925.0,0.00105346]
[1746399615268,1.5799588,94926.0,94925.0,0.00105346]
[1746399615569,0.07,94926.0,94925.0,0.21171446]
[1746399615759,0.12,94927.0,94926.0,0.2106588]
[1746399615957,0.12,94927.0,94926.0,0.3403588]
[1746399616160,0.3608,94946.0,94942.0,0.2106225]
[1746399616464,0.04,94946.0,94945.0,0.5714166]
[1746399616768,0.04,94946.0,94943.0,0.2598]
[1746399616968,0.2106188,94944.0,94943.0,0.2598]
[1746399617368,0.06604,94946.0,94943.0,0.2598]
[1746399617570,0.41,94946.0,94945.0,0.2106166]
[1746399618167,0.02,94946.0,94943.0,0.6216]
[1746399618363,0.02,94946.0,94945.0,0.2632704]
[1746399618568,0.02,94946.0,94945.0,0.3159242]
[1746399618768,0.4992,94979.0,94945.0,0.121]
[1746399619074,0.2688,94985.0,94974.0,0.5713523]
[1746399619276,0.0315,94975.0,94974.0,0.2105523]
[1746399619565,0.0315,94975.0,94974.0,0.4804523]
[1746399619964,0.0025,94975.0,94974.0,0.9457443]
[1746399620169,0.001,94986.0,94985.0,0.2105279]
[1746399620363,0.121,94986.0,94985.0,0.5713279]
[1746399621063,0.121,94986.0,94985.0,0.8435279]
[1746399621969,0.129,94986.0,94985.0,0.8435279]
[1746399622165,0.9605257,94986.0,94985.0,0.1384]
[1746399622373,1.3205257,94986.0,94985.0,0.002]
[1746399622573,1.5887257,94986.0,94985.0,0.002]
[1746399623073,1.7067257,94986.0,94985.0,0.002]
[1746399625060,1.7067257,94986.0,94974.0,0.1890378]
[1746399625061,1.60148,94986.0,94963.0,0.2105751]
[1746399625261,0.57136,94971.0,94961.0,0.2651]
[1746399625466,0.2673,94970.0,94969.0,0.2105634]
[1746399625666,0.2673,94970.0,94965.0,0.0526428]
[1746399625667,0.42,94970.0,94965.0,0.0526428]
[1746399625967,0.95,94970.0,94969.0,0.2105634]
[1746399627274,0.488,94970.0,94969.0,0.2105634]
[1746399628175,0.493,94970.0,94969.0,0.2105634]
[1746399631177,0.489,94970.0,94969.0,0.1975634]
[1746399633376,0.479,94970.0,94969.0,0.1975634]
[1746399633579,1.089,94970.0,94969.0,0.1975634]
[1746399635687,0.279,94970.0,94969.0,0.1975634]
[1746399636180,0.529,94970.0,94969.0,0.1975634]
[1746399639087,0.529,94970.0,94969.0,0.5583634]
[1746399642088,0.529,94970.0,94969.0,0.6976634]
[1746399643279,1.2084,94970.0,94969.0,0.6976634]
[1746399643480,0.6184,94970.0,94969.0,0.6976634]
[1746399643687,0.6384,94970.0,94969.0,0.6976634]
[1746399643989,0.6284,94970.0,94969.0,0.6976634]
[1746399644185,0.199,94970.0,94969.0,0.6976634]
[1746399644394,0.001,94986.0,94969.0,0.6976634]
[1746399644395,0.001,94986.0,94985.0,0.2105279]
[1746399644682,0.001,94986.0,94983.0,0.0526327]
[1746399644683,0.2105324,94983.0,94982.0,0.3608]
[1746399644884,1.1705324,94983.0,94982.0,0.5713346]
[1746399645092,0.2105368,94981.0,94980.0,0.2105389]
[1746399645282,0.2105551,94973.0,94972.0,0.2105565]
[1746399645481,1.05,94973.0,94969.0,0.0526408]
[1746399645790,0.2715,94972.0,94971.0,0.210559]
[1746399645991,0.6605,94972.0,94971.0,0.210559]
[1746399646282,0.3885,94972.0,94971.0,0.210559]
[1746399646487,0.128,94972.0,94971.0,0.210559]
[1746399646684,0.001,94973.0,94972.0,0.2105567]
[1746399646886,0.001,94986.0,94985.0,0.2105279]
[1746399647087,0.07964602,94991.0,94990.0,0.2105168]
[1746399647387,0.16964602,94991.0,94990.0,0.2105168]
[1746399647588,0.09,94991.0,94990.0,0.2105168]
[1746399647787,0.10571893,94999.0,94998.0,0.2104991]
[1746399647980,0.18571893,94999.0,94998.0,0.5712991]
[1746399648184,0.0015,95010.0,95009.0,0.2104747]
[1746399648384,0.5415,95010.0,95009.0,0.2104747]
[1746399649181,0.5415,95010.0,95009.0,0.5712747]
[1746399650184,0.5465,95010.0,95009.0,0.5712747]
[1746399658090,0.5465,95010.0,95009.0,0.2104747]
[1746399660794,0.0065,95010.0,95009.0,0.2104747]
[1746399662086,0.0065,95010.0,95009.0,0.3449747]
[1746399665592,0.2104903,95002.0,94998.0,0.3608]
[1746399665795,1.5712903,95002.0,94995.0,0.2105044]
[1746399665998,0.2105102,94993.0,94992.0,0.2105113]
[1746399666191,1.3685102,94993.0,94992.0,0.2105113]
[1746399666784,0.3285102,94993.0,94992.0,0.2105113]
[1746399667096,0.578,94993.0,94992.0,0.2105113]
[1746399667295,0.3608,95023.0,94992.0,0.155272]
[1746399667594,0.1254,95026.0,95015.0,0.2104615]
[1746399667796,0.07991003,95036.0,95035.0,0.2104172]
[1746399667992,0.07991003,95036.0,95035.0,0.5712172]
[1746399668188,0.47991003,95036.0,95035.0,0.2104172]
[1746399668594,0.07991003,95036.0,95035.0,0.2104172]
[1746399668794,0.46991003,95036.0,95035.0,0.4646172]
[1746399669090,0.07991003,95036.0,95035.0,0.4646172]
[1746399669296,0.08791003,95036.0,95035.0,0.4646172]
[1746399669497,0.09791003,95036.0,95035.0,0.4646172]
[1746399670495,0.018,95036.0,95035.0,0.4646172]
[1746399674599,0.018,95036.0,95035.0,0.3369172]
[1746399674801,1.028,95036.0,95033.0,0.3608]
[1746399675105,0.2104194,95034.0,95033.0,0.6238223]
[1746399675298,0.6804194,95034.0,95033.0,0.6238223]
[1746399675604,0.9317194,95034.0,95033.0,0.6238223]
[1746399676303,0.8393,95034.0,95033.0,0.5712172]
[1746399676902,0.8393,95034.0,95033.0,0.5722172]
[1746399678004,0.8453,95034.0,95033.0,0.2114172]
[1746399678300,1.6057194,95034.0,95033.0,0.001]
[1746399678501,1.3953,95034.0,95033.0,0.2114216]
[1746399678899,1.6057194,95034.0,95033.0,0.001]
[1746399679096,1.6057194,95034.0,95033.0,0.2114216]
[1746399680102,0.8353,95034.0,95033.0,0.2114216]
[1746399680304,1.3953,95034.0,95033.0,0.2114216]
[1746399680507,0.8053,95034.0,95033.0,0.2114216]
[1746399687606,0.7953,95034.0,95033.0,0.2114216]
[1746399688111,1.3553,95034.0,95033.0,0.2114216]
[1746399689309,0.7553,95034.0,95033.0,0.2114216]
[1746399689509,0.8053,95034.0,95033.0,0.2114216]
[1746399691408,1.0157194,95034.0,95033.0,0.2114216]
[1746399691604,0.8053,95034.0,95033.0,0.2114216]
[1746399693411,1.6157194,95034.0,95033.0,0.001]
[1746399693614,1.87132801,95034.0,95017.0,0.1239]
[1746399693804,0.2104526,95020.0,95019.0,0.2104486]
[1746399694005,1.1,95020.0,95019.0,0.2104486]
[1746399694212,1.218,95020.0,95019.0,0.2104486]
[1746399694905,0.3567,95020.0,95019.0,0.2114486]
[1746399695107,0.181,95020.0,95019.0,0.3353486]
[1746399695307,0.063,95020.0,95019.0,0.4589486]
[1746399695510,0.063,95020.0,95019.0,0.5875486]
[1746399696112,0.521,95020.0,95019.0,0.5875486]
[1746399703723,0.7114504,95020.0,95019.0,0.001]
[1746399703923,1.3214504,95020.0,95019.0,0.001]
[1746399704617,1.5745504,95020.0,95019.0,0.001]
[1746399705318,1.9353504,95020.0,95019.0,0.001]
[1746399709425,1.9353504,95020.0,95019.0,0.2114526]
[1746399709629,1.9353504,95020.0,95019.0,0.001]
[1746399711132,0.251,95020.0,95019.0,0.001]
[1746399711326,0.121,95020.0,95019.0,0.2114526]
[1746399712022,0.20096326,95020.0,95019.0,0.2114526]
[1746399712228,0.08296326,95020.0,95019.0,0.2114526]
[1746399714829,0.08296326,95020.0,95019.0,0.5722526]
[1746399717034,0.003,95020.0,95019.0,0.5722526]
[1746399723840,1e-07,95020.0,95019.0,0.6774926]
[1746399724238,1e-07,95020.0,95019.0,0.7954926]
[1746399725838,1e-07,95020.0,95019.0,0.8054926]
[1746399726039,1e-07,95020.0,95019.0,0.8154926]
[1746399726740,6e-08,95032.0,95031.0,0.210426]
[1746399726940,4e-08,95039.0,95038.0,0.2104105]
[1746399727132,4e-08,95039.0,95038.0,0.5712105]
[1746399727340,4e-08,95039.0,95038.0,0.6764305]
[1746399727638,0.09189911,95048.0,95047.0,0.2103906]
[1746399727843,0.09189911,95048.0,95047.0,0.5711906]
[1746399728035,0.09189911,95048.0,95047.0,0.6764026]
[1746399728435,0.03600881,95048.0,95047.0,0.9363026]
[1746399728636,0.10647914,95049.0,95048.0,0.2629854]
[1746399728940,0.10647914,95049.0,95048.0,0.5228854]
[1746399730250,0.11247914,95049.0,95048.0,0.5238854]
[1746399730941,0.11247914,95049.0,95048.0,0.53627222]
[1746399733448,0.006,95049.0,95048.0,0.53627222]
[1746399734148,0.124,95049.0,95048.0,0.53627222]
[1746399735044,0.124,95049.0,95048.0,0.54428765]
[1746399735347,0.006,95049.0,95048.0,0.54428765]
[1746399736653,0.0525846,95071.0,95048.0,0.54428765]
[1746399736654,0.1287,95063.0,95062.0,0.2103574]
[1746399736948,0.2787,95063.0,95062.0,0.2103574]
[1746399737153,0.3967,95063.0,95062.0,0.2103574]
[1746399739253,0.4047,95063.0,95062.0,0.2113574]
[1746399739742,0.539,95063.0,95062.0,0.2113574]
[1746399740139,0.531,95063.0,95062.0,0.2103574]
[1746399740344,0.536,95063.0,95062.0,0.2103574]
[1746399741747,0.538,95063.0,95062.0,0.2113574]
[1746399745151,0.531,95063.0,95062.0,0.2103574]
[1746399745353,0.538,95063.0,95062.0,0.2113574]
[1746399751259,0.558,95063.0,95062.0,0.2113574]
[1746399752354,0.4237,95063.0,95062.0,0.2113574]
[1746399752559,0.4037,95063.0,95062.0,0.3390574]
[1746399752757,0.4037,95063.0,95062.0,0.4655574]
[1746399753460,0.4037,95063.0,95062.0,0.3390574]
[1746399754358,0.4037,95063.0,95062.0,0.6998574]
[1746399754661,0.4137,95063.0,95062.0,0.6998574]
[1746399755754,0.6240552,95063.0,95062.0,0.5721574]
[1746399756062,1.9292472,95063.0,95062.0,0.001]
[1746399756361,0.2104149,95036.0,95025.0,0.0526097]
[1746399756557,1.6969749,95036.0,95027.0,0.0557656]
[1746399756859,1.80219891,95036.0,95032.0,0.2104237]
[1746399757371,2.17919891,95036.0,95030.0,0.22282938]
[1746399757656,2.17919891,95036.0,95030.0,0.2104277]
[1746399757861,2.17919891,95036.0,95027.0,0.0031569]
[1746399758063,2.0739749,95036.0,95027.0,0.0031569]
[1746399758265,2.0739749,95036.0,95029.0,0.2104288]
[1746399758561,2.0739749,95036.0,95035.0,0.16170347]
[1746399760966,2.0739749,95036.0,95035.0,0.001]
[1746399761658,0.2104327,95028.0,95027.0,0.0031569]
[1746399761962,1.5812327,95028.0,95027.0,0.0031569]
[1746399762164,1.6992327,95028.0,95027.0,0.0031569]
[1746399762566,1.9471327,95028.0,95027.0,0.0031569]
[1746399762966,1.9481327,95028.0,95027.0,0.0071569]
[1746399771867,1.9481327,95028.0,95027.0,0.1411569]
[1746399776171,2.0138527,95028.0,95027.0,0.1411569]
[1746399779475,2.0138527,95028.0,95027.0,0.3515918]
[1746399782475,1.4898,95028.0,95027.0,0.3515918]
[1746399782781,1.4898,95028.0,95027.0,0.1411569]
[1746399782972,0.2104415,95024.0,95023.0,0.01578]
[1746399783176,1.2204415,95024.0,95023.0,0.01578]
[1746399783477,0.2104482,95021.0,95020.0,0.1363]
[1746399783676,1.2304482,95021.0,95020.0,0.1363]
[1746399784178,1.3454482,95021.0,95020.0,0.1363]
[1746399784881,1.3464482,95021.0,95020.0,0.1403]
[1746399786369,1.3454482,95021.0,95020.0,0.1363]
[1746399786571,1.3494482,95021.0,95020.0,0.1363]
[1746399787583,0.2104592,95016.0,95015.0,0.00105246]
[1746399787783,1.6812592,95016.0,95015.0,0.00105246]
[1746399788078,1.6812592,95016.0,95010.0,0.01578]
[1746399788079,0.2104703,95011.0,95010.0,0.01578]
[1746399788381,0.2105035,94996.0,94983.0,0.052633]
[1746399788584,1.2236635,94996.0,94991.0,0.1335]
[1746399788974,1.4818635,94996.0,94991.0,0.1335]
[1746399789272,1.5998635,94996.0,94991.0,0.1335]
[1746399789879,0.210508,94994.0,94991.0,0.1335]
[1746399790086,1.240508,94994.0,94993.0,0.29210347]
[1746399790883,1.240508,94994.0,94993.0,0.28540347]
[1746399791084,0.0526321,94985.0,94968.0,0.3608]
[1746399791288,0.5713412,94979.0,94978.0,0.1245]
[1746399791587,1.7571012,94979.0,94978.0,0.1245]
[1746399792180,2.0084012,94979.0,94978.0,0.1245]
[1746399793475,2.0094012,94979.0,94978.0,0.1275]
[1746399797089,1.66556,94979.0,94978.0,0.3380434]
[1746399797274,1.8761012,94979.0,94978.0,0.3380434]
[1746399797588,0.2105479,94976.0,94975.0,0.1299]
[1746399797785,1.2805479,94976.0,94975.0,0.1299]
[1746399798090,1.3985479,94976.0,94975.0,0.1299]
[1746399798675,1.3995479,94976.0,94975.0,0.1329]
[1746399798881,1.3995479,94976.0,94975.0,0.003]
[1746399801091,1.3995479,94976.0,94975.0,0.2135501]
[1746399801590,1.3995479,94976.0,94975.0,0.4834501]
[1746399807088,1.5917079,94976.0,94975.0,0.4834501]
[1746399809297,1.5917079,94976.0,94975.0,0.4804501]
[1746399813704,1.5917079,94976.0,94975.0,0.2699]
[1746399821011,1.7245079,94976.0,94975.0,0.2699]
[1746399824307,1.61925201,94976.0,94967.0,0.03685]
[1746399824512,0.2105878,94958.0,94957.0,0.00157965]
[1746399824704,1.5971478,94958.0,94957.0,0.00157965]
[1746399825211,1.7151478,94958.0,94957.0,0.00157965]
[1746399827499,1.7161478,94958.0,94957.0,0.00157965]
[1746399835713,1.6503878,94958.0,94957.0,0.00157965]
[1746399835907,1.7161078,94958.0,94957.0,0.00157965]
[1746399844834,1.4398,94958.0,94957.0,0.00157965]
[1746399845115,1.6503878,94958.0,94957.0,0.00157965]
[1746399845314,1.7161078,94958.0,94957.0,0.00157965]
[1746399845716,1.8435078,94958.0,94957.0,0.00157965]
[1746399845917,1.9730078,94958.0,94957.0,0.00157965]
[1746399849227,2.0783198,94958.0,94957.0,0.00157965]
[1746399849427,0.2105922,94956.0,94948.0,0.00338]
[1746399849625,0.2106077,94949.0,94948.0,0.00338]
[1746399849927,0.2106233,94942.0,94941.0,0.00157994]
[1746399850116,1.3663433,94942.0,94941.0,0.00157994]
[1746399850322,1.4843433,94942.0,94941.0,0.00157994]
[1746399850727,1.7485433,94942.0,94941.0,0.00157994]
[1746399851925,1.7505433,94942.0,94941.0,0.00157994]
[1746399853726,1.6848233,94942.0,94941.0,0.00157994]
[1746399853931,1.6228833,94942.0,94941.0,0.00157994]
[1746399854625,1.27576,94942.0,94941.0,0.26817994]
[1746399854824,1.4863833,94942.0,94941.0,0.26817994]
[1746399860844,1.21,94942.0,94941.0,0.26817994]
[1746399861032,1.21,94942.0,94941.0,0.52675626]
[1746399861231,0.692,94942.0,94941.0,0.52675626]
[1746399861530,0.022,94942.0,94941.0,0.52675626]
[1746399861733,1.092,94942.0,94941.0,0.52675626]
[1746399861933,1.092,94942.0,94941.0,0.31613076]
[1746399862126,1.3026233,94942.0,94941.0,0.31613076]
[1746399863623,1.3026233,94942.0,94941.0,0.52675626]
[1746399867735,0.9026233,94942.0,94941.0,0.52675626]
[1746399870443,1.2126233,94942.0,94941.0,0.52675626]
[1746399870738,1.2579513,94942.0,94941.0,2e-08]
[1746399871041,1.2579513,94942.0,94934.0,0.21800173]
[1746399871042,0.2106388,94935.0,94934.0,0.14536893]
[1746399871338,1.5871588,94935.0,94934.0,0.14536893]
[1746399871538,1.69249481,94935.0,94934.0,0.14536893]
[1746399871937,1.95569481,94935.0,94934.0,0.14536893]
[1746399872141,1.9683588,94935.0,94934.0,0.14536893]
[1746399873337,1.9703588,94935.0,94934.0,0.14536893]
[1746399875240,0.2106588,94926.0,94925.0,0.00105346]
[1746399875539,1.6614588,94926.0,94925.0,0.00105346]
[1746399876139,2.0414588,94926.0,94925.0,0.00105346]
[1746399877144,2.0434588,94926.0,94925.0,0.00105346]
[1746399884545,2.1091788,94926.0,94925.0,0.00105346]
[1746399887947,2.4699788,94926.0,94925.0,0.00105346]
[1746399893660,2.46980129,94926.0,94925.0,0.00105346]
[1746399894965,2.40408129,94926.0,94925.0,0.00105346]
[1746399895262,2.46976129,94926.0,94925.0,0.00105346]
[1746399895654,2.46976129,94926.0,94925.0,0.25005346]
[1746399907766,0.2107054,94905.0,94904.0,0.26684877]
[1746399907960,2.0779854,94905.0,94904.0,0.26684877]
[1746399908164,2.1959854,94905.0,94904.0,0.26684877]
[1746399908865,2.4527854,94905.0,94904.0,0.26684877]
[1746399913871,0.2107121,94902.0,94901.0,0.3607]
[1746399914063,1.3107121,94902.0,94901.0,0.3607]
[1746399914264,1.4287121,94902.0,94901.0,0.1179]
[1746399914872,1.4307121,94902.0,94901.0,0.1179]
[1746399915272,1.4307121,94902.0,94901.0,0.3702]
[1746399917169,1.22,94902.0,94901.0,0.5809143]
[1746399917376,0.81,94902.0,94901.0,0.5809143]
[1746399917580,0.81,94902.0,94895.0,0.00105379]
[1746399917581,0.2107587,94881.0,94880.0,0.26684877]
[1746399917874,0.2107809,94871.0,94865.0,0.00105412]
[1746399918180,0.2107898,94867.0,94866.0,0.1266]
[1746399918373,0.7907898,94867.0,94866.0,0.1266]
[1746399918678,1.1907898,94867.0,94866.0,0.1266]
[1746399918870,1.4322898,94867.0,94866.0,0.1266]
[1746399919180,1.5502898,94867.0,94866.0,0.1266]
[1746399919370,0.210792,94866.0,94865.0,0.00105412]
[1746399919672,1.160792,94866.0,94865.0,0.00105412]
[1746399919879,1.279492,94866.0,94865.0,0.00105412]
[1746399920179,0.2107987,94863.0,94862.0,0.02605412]
[1746399920373,0.5707987,94863.0,94862.0,0.02605412]
[1746399920576,1.2607987,94863.0,94862.0,0.02605412]
[1746399920770,0.9315987,94863.0,94862.0,0.02605412]
[1746399920971,1.1015987,94863.0,94862.0,0.02605412]
[1746399922185,1.1045987,94863.0,94862.0,0.02605412]
[1746399923173,1.5545987,94863.0,94862.0,0.02605412]
[1746399925871,0.2108053,94860.0,94859.0,0.00149744]
[1746399926072,0.2108209,94853.0,94852.0,0.0015814]
[1746399926271,0.2108587,94836.0,94833.0,0.1008]
[1746399926475,1.5216587,94836.0,94833.0,0.1008]
[1746399927076,1.6396587,94836.0,94833.0,0.1008]
[1746399927373,1.8520587,94836.0,94833.0,0.1008]
[1746399927578,1.8520587,94836.0,94821.0,0.31864152]
[1746399927975,1.86340168,94836.0,94821.0,0.31864152]
[1746399928174,1.86340168,94836.0,94835.0,0.00105446]
[1746399928371,1.86640168,94836.0,94835.0,0.00105446]
[1746399930781,1.9207387,94836.0,94835.0,0.00105446]
[1746399932078,1.93242423,94836.0,94835.0,0.00105446]
[1746399933485,1.9207387,94836.0,94835.0,0.00105446]
[1746399944190,1.8027387,94836.0,94835.0,0.00105446]
[1746399945091,1.9207387,94836.0,94835.0,0.00105446]
[1746399946689,0.2108698,94831.0,94830.0,0.09275446]
[1746399946889,1.2008698,94831.0,94830.0,0.19315446]
[1746399947787,1.2038698,94831.0,94830.0,0.19315446]
[1746399948483,0.113,94831.0,94830.0,0.34598393]
[1746399948687,0.2838698,94831.0,94830.0,0.34598393]
[1746399948895,0.2138698,94831.0,94830.0,0.34598393]
[1746399950097,0.003,94831.0,94830.0,0.46398393]
[1746399950301,0.003,94831.0,94830.0,0.56548393]
[1746399950894,0.2138698,94831.0,94830.0,0.56548393]
[1746399952297,0.2238698,94831.0,94830.0,0.56548393]
[1746399952988,0.6138698,94831.0,94830.0,0.56548393]
[1746399954097,0.5938698,94831.0,94830.0,0.44748393]
[1746399954291,0.6138698,94831.0,94830.0,0.44748393]
[1746399955192,0.6138698,94831.0,94830.0,0.60254306]
[1746399955193,0.403,94831.0,94830.0,0.60254306]
[1746399955390,0.6138698,94831.0,94830.0,0.60254306]
[1746399959099,0.403,94831.0,94830.0,0.70799505]
[1746399959300,0.003,94831.0,94830.0,1.27966705]
[1746399960096,0.003,94831.0,94830.0,1.39766705]
[1746399961095,0.013,94831.0,94830.0,1.39766705]
[1746399963204,0.2238698,94831.0,94830.0,1.39766705]
[1746399963394,0.3210698,94831.0,94830.0,1.39766705]
[1746399963704,0.3310698,94831.0,94830.0,1.39766705]
[1746399964397,0.3210698,94831.0,94830.0,1.39766705]
[1746399965208,0.1102,94831.0,94826.0,0.01581]
[1746399965501,0.1102,94831.0,94745.0,0.00105546]
[1746399965502,0.3608,94762.0,94692.0,0.3608]
[1746399965798,0.3608,94762.0,94611.0,0.5283984]
[1746399965799,0.2112106,94678.0,94664.0,0.3608]
[1746399966003,1.5128106,94678.0,94677.0,0.00128433]
[1746399966302,1.5128106,94678.0,94641.0,1.51804]
[1746399966303,0.2112284,94670.0,94641.0,1.51804]
[1746399966505,1.5120284,94670.0,94669.0,0.13145018]
[1746399966802,1.395902,94670.0,94669.0,0.14699145]
[1746399966995,1.4014984,94670.0,94669.0,0.14699145]
[1746399967192,1.82059861,94670.0,94669.0,0.14699145]
[1746399967396,1.82059861,94670.0,94669.0,0.07167145]
[1746399967601,1.82851575,94670.0,94669.0,0.07167145]
[1746399967809,1.73597148,94670.0,94656.0,0.68770769]
[1746399968104,0.5720574,94657.0,94656.0,0.68770769]
[1746399968401,1.3708,94657.0,94656.0,0.71622392]
[1746399968596,1.7316,94657.0,94656.0,0.49176612]
[1746399968795,1.6316,94657.0,94656.0,0.49176612]
[1746399969298,1.7496,94657.0,94656.0,2.17588455]
[1746399969615,0.36859454,94670.0,94658.0,1.83735]
[1746399969802,0.38,94670.0,94669.0,2.03061843]
[1746399970105,0.00943119,94695.0,94677.0,0.0528026]
[1746399970305,0.60943119,94695.0,94694.0,0.78262]
[1746399970610,0.97943119,94695.0,94694.0,0.5623]
[1746399970800,0.9715,94695.0,94694.0,0.75556843]
[1746399971109,1.0895,94695.0,94694.0,0.75556843]
[1746399971299,1.0895,94695.0,94694.0,2.59291843]
[1746399971499,0.36,94695.0,94694.0,2.59291843]
[1746399972403,1.1811727,94695.0,94694.0,2.59291843]
[1746399972702,0.97,94695.0,94694.0,2.71614948]
[1746399973105,1.088,94695.0,94694.0,2.71614948]
[1746399973306,0.12976325,94740.0,94694.0,1.87930061]
[1746399973509,1.041,94716.0,94715.0,2.75221843]
[1746399974095,0.0089407,94716.0,94715.0,2.75221843]
[1746399974302,0.211098,94729.0,94715.0,3.37877061]
[1746399974502,1.141098,94729.0,94728.0,0.3608]
[1746399974697,0.2111236,94717.0,94716.0,0.61508843]
[1746399975007,0.2111236,94717.0,94716.0,0.69428]
[1746399975008,0.9711236,94717.0,94716.0,0.69428]
[1746399975197,0.488,94717.0,94716.0,2.30307843]
[1746399975397,0.97,94717.0,94716.0,2.92963061]
[1746399975602,0.38,94717.0,94716.0,2.92963061]
[1746399975811,0.4,94717.0,94716.0,2.92963061]
[1746399976207,0.4,94717.0,94716.0,3.04763061]
[1746399976402,1.2311236,94717.0,94716.0,0.58372843]
[1746399976810,1.2311236,94717.0,94716.0,0.50836843]
[1746399977005,1.2311236,94717.0,94716.0,0.58372843]
[1746399977309,1.2311236,94717.0,94715.0,0.3189337]
[1746399977310,0.2111258,94716.0,94715.0,0.3189337]
[1746399977609,0.2111593,94701.0,94700.0,0.3608]
[1746399977797,1.2911593,94701.0,94700.0,0.43616]
[1746399978202,1.3986293,94701.0,94700.0,0.43616]
[1746399979113,0.2111816,94691.0,94690.0,0.1006]
[1746399979416,1.2706516,94691.0,94690.0,0.176]
[1746399979714,1.2706516,94691.0,94690.0,0.36926843]
[1746399980213,1.3886516,94691.0,94690.0,0.36926843]
[1746399980413,1.3781216,94691.0,94690.0,0.36926843]
[1746399980613,1.3781216,94691.0,94690.0,2.83317061]
[1746399981308,1.3781216,94691.0,94690.0,0.36926843]
[1746399981510,0.2006605,94687.0,94686.0,0.1017]
[1746399981706,1.2311905,94687.0,94686.0,0.0754]
[1746399982102,0.2111927,94686.0,94681.0,0.3608]
[1746399982300,1.2011927,94686.0,94685.0,0.07645613]
[1746399982498,1.2011927,94686.0,94685.0,2.10707456]
[1746399982707,0.8263855,94709.0,94687.0,1.41553]
[1746399982914,0.2111704,94696.0,94695.0,0.3608]
[1746399983103,1.3311704,94696.0,94695.0,1.97233]
[1746399983300,1.3311704,94696.0,94695.0,0.75006843]
[1746399983917,1.3311704,94696.0,94695.0,2.58741843]